[Event "Live Chess"]
[Site "Chess.com"]
[Date "2023.05.21"]
[Round "-"]
[White "Bob2pen"]
[Black "Olisingapore"]
[Result "0-1"]
[WhiteElo "1877"]
[BlackElo "1811"]
[TimeControl "300"]
[EndTime "8:55:04 PDT"]
[Termination "Olisingapore won by resignation"]

1. c4 {[%clk 0:04:53.1]} 1... e5 {[%clk 0:04:57.6]} 2. g3 {[%clk 0:04:52.1]}
2... Nf6 {[%clk 0:04:57.2]} 3. Bg2 {[%clk 0:04:51.5]} 3... c6 {[%clk 0:04:55.6]}
4. Nc3 {[%clk 0:04:48.6]} 4... Bb4 {[%clk 0:04:55.2]} 5. Nf3 {[%clk 0:04:45.4]}
5... d5 {[%clk 0:04:52.5]} 6. Nxe5 {[%clk 0:04:42.7]} 6... d4 {[%clk 0:04:47.9]}
7. Nb1 {[%clk 0:04:39.3]} 7... O-O {[%clk 0:04:42.4]} 8. O-O {[%clk 0:04:37.3]}
8... Qd6 {[%clk 0:04:32.9]} 9. Nd3 {[%clk 0:04:29.8]} 9... Re8 {[%clk
0:04:27.7]} 10. a3 {[%clk 0:04:25.6]} 10... Ba5 {[%clk 0:04:20.5]} 11. b4 {[%clk
0:04:24.4]} 11... Bc7 {[%clk 0:04:16.1]} 12. Bb2 {[%clk 0:04:22.4]} 12... Bg4
{[%clk 0:04:10.7]} 13. Nf4 {[%clk 0:04:11.3]} 13... g5 {[%clk 0:04:06.7]} 14. h3
{[%clk 0:04:06.5]} 14... gxf4 {[%clk 0:04:03.2]} 15. hxg4 {[%clk 0:04:05.1]}
15... fxg3 {[%clk 0:04:02.2]} 16. f3 {[%clk 0:04:02.8]} 16... Nxg4 {[%clk
0:03:47.7]} 17. fxg4 {[%clk 0:03:52.3]} 17... Qh6 {[%clk 0:03:47.2]} 18. Rf3
{[%clk 0:03:45.4]} 18... Qh2+ {[%clk 0:03:43.1]} 19. Kf1 {[%clk 0:03:44.3]}
19... c5 {[%clk 0:03:10]} 20. bxc5 {[%clk 0:03:42.6]} 20... Nc6 {[%clk 0:03:06]}
21. Qc2 {[%clk 0:03:35.1]} 21... Rxe2 {[%clk 0:03:00.8]} 22. Rf2 {[%clk
0:03:20.7]} 22... Rxf2+ {[%clk 0:02:56.9]} 0-1

[Event "Live Chess"]
[Site "Chess.com"]
[Date "2023.05.21"]
[Round "-"]
[White "matt1979"]
[Black "ProfPoisson"]
[Result "1/2-1/2"]
[WhiteElo "1528"]
[BlackElo "1214"]
[TimeControl "300"]
[EndTime "8:55:08 PDT"]
[Termination "Game drawn by agreement"]

1. f4 {[%clk 0:04:58.6]} 1... e6 {[%clk 0:04:56.4]} 2. Nf3 {[%clk 0:04:57]} 2...
d5 {[%clk 0:04:52.9]} 3. e3 {[%clk 0:04:55.3]} 3... Nf6 {[%clk 0:04:41.7]} 4. b3
{[%clk 0:04:52.2]} 4... c5 {[%clk 0:04:37.5]} 5. Bb2 {[%clk 0:04:51.2]} 5... Be7
{[%clk 0:04:35.1]} 6. Ne5 {[%clk 0:04:49.6]} 6... O-O {[%clk 0:04:29.1]} 7. Be2
{[%clk 0:04:46.2]} 7... Nbd7 {[%clk 0:04:25.2]} 8. O-O {[%clk 0:04:43.8]} 8...
Nxe5 {[%clk 0:04:23.4]} 9. Bxe5 {[%clk 0:04:40.6]} 9... Bd6 {[%clk 0:04:18.3]}
10. Bb2 {[%clk 0:04:35.4]} 10... Qe7 {[%clk 0:03:54.2]} 11. d3 {[%clk
0:04:33.5]} 11... e5 {[%clk 0:03:48.6]} 12. e4 {[%clk 0:04:20.3]} 12... dxe4
{[%clk 0:03:41.1]} 13. dxe4 {[%clk 0:04:15.8]} 13... Nxe4 {[%clk 0:03:39.5]} 14.
Bd3 {[%clk 0:04:10.6]} 14... exf4 {[%clk 0:03:30.9]} 15. Re1 {[%clk 0:04:03.7]}
15... Bf5 {[%clk 0:03:25.8]} 16. Nd2 {[%clk 0:03:55.3]} 16... Qh4 {[%clk
0:02:56.6]} 17. Nxe4 {[%clk 0:03:51.7]} 17... f3 {[%clk 0:02:53.1]} 18. g3
{[%clk 0:03:43.7]} 18... Qh3 {[%clk 0:02:40.8]} 19. Qd2 {[%clk 0:03:36.3]} 19...
Bxe4 {[%clk 0:02:28]} 20. Bxe4 {[%clk 0:03:31.5]} 20... Rad8 {[%clk 0:02:19]}
21. Bxf3 {[%clk 0:03:15.9]} 21... Bxg3 {[%clk 0:02:15.8]} 22. Qg2 {[%clk
0:03:06.3]} 22... Qxg2+ {[%clk 0:02:10.8]} 23. Kxg2 {[%clk 0:03:01.1]} 23...
Bxe1 {[%clk 0:02:09.2]} 24. Rxe1 {[%clk 0:02:59.5]} 24... Rd2+ {[%clk
0:02:07.6]} 25. Re2 {[%clk 0:02:57]} 25... Rxe2+ {[%clk 0:01:56.8]} 26. Bxe2
{[%clk 0:02:55.7]} 26... b6 {[%clk 0:01:55.4]} 27. Bd3 {[%clk 0:02:53.2]} 27...
g6 {[%clk 0:01:52.2]} 28. Bc4 {[%clk 0:02:48.2]} 28... Rd8 {[%clk 0:01:49.3]}
29. Bd3 {[%clk 0:02:45.4]} 29... f5 {[%clk 0:01:45.4]} 30. Kf3 {[%clk
0:02:42.7]} 30... Kf7 {[%clk 0:01:43.4]} 31. Kf4 {[%clk 0:02:39.5]} 1/2-1/2

[Event "Live Chess"]
[Site "Chess.com"]
[Date "2023.05.21"]
[Round "-"]
[White "MarkLim1"]
[Black "educatedlad"]
[Result "1-0"]
[WhiteElo "1717"]
[BlackElo "1619"]
[TimeControl "300"]
[EndTime "8:55:51 PDT"]
[Termination "MarkLim1 won by resignation"]

1. e4 {[%clk 0:04:58.9]} 1... e6 {[%clk 0:04:57.5]} 2. d3 {[%clk 0:04:57.7]}
2... d5 {[%clk 0:04:57.4]} 3. Nd2 {[%clk 0:04:56.9]} 3... Nf6 {[%clk 0:04:55.6]}
4. Ngf3 {[%clk 0:04:56.3]} 4... c5 {[%clk 0:04:52.9]} 5. g3 {[%clk 0:04:55.6]}
5... Nc6 {[%clk 0:04:51.9]} 6. Bg2 {[%clk 0:04:54.9]} 6... Be7 {[%clk
0:04:49.6]} 7. O-O {[%clk 0:04:54]} 7... O-O {[%clk 0:04:48.8]} 8. Re1 {[%clk
0:04:53.1]} 8... e5 {[%clk 0:04:45.9]} 9. exd5 {[%clk 0:04:51]} 9... Qxd5 {[%clk
0:04:44.3]} 10. Nxe5 {[%clk 0:04:42.6]} 10... Qd8 {[%clk 0:04:41.7]} 11. Nxc6
{[%clk 0:04:40.7]} 11... b6 {[%clk 0:04:41.6]} 12. Nxd8 {[%clk 0:04:39.1]} 1-0

[Event "Live Chess"]
[Site "Chess.com"]
[Date "2023.05.21"]
[Round "-"]
[White "f4nomore"]
[Black "wot-not"]
[Result "0-1"]
[WhiteElo "1374"]
[BlackElo "1539"]
[TimeControl "300"]
[EndTime "8:55:57 PDT"]
[Termination "wot-not won on time"]

1. d4 {[%clk 0:04:58]} 1... e6 {[%clk 0:04:57.3]} 2. Nf3 {[%clk 0:04:55]} 2...
d5 {[%clk 0:04:56.2]} 3. c3 {[%clk 0:04:53.4]} 3... Nf6 {[%clk 0:04:54.6]} 4.
Bg5 {[%clk 0:04:50.4]} 4... Be7 {[%clk 0:04:53.6]} 5. Bxf6 {[%clk 0:04:48.2]}
5... Bxf6 {[%clk 0:04:52.2]} 6. e3 {[%clk 0:04:47]} 6... O-O {[%clk 0:04:51.1]}
7. Bd3 {[%clk 0:04:43.9]} 7... c5 {[%clk 0:04:48.1]} 8. O-O {[%clk 0:04:41.5]}
8... c4 {[%clk 0:04:47.1]} 9. Bc2 {[%clk 0:04:38.5]} 9... Nd7 {[%clk 0:04:45.7]}
10. b3 {[%clk 0:04:37.5]} 10... b5 {[%clk 0:04:43.8]} 11. bxc4 {[%clk
0:04:35.1]} 11... bxc4 {[%clk 0:04:43.3]} 12. Na3 {[%clk 0:04:29.2]} 12... Re8
{[%clk 0:04:34.7]} 13. Rb1 {[%clk 0:04:26.1]} 13... Nf8 {[%clk 0:04:33.6]} 14.
Ba4 {[%clk 0:04:21.4]} 14... Bd7 {[%clk 0:04:31.6]} 15. Nb5 {[%clk 0:04:10.4]}
15... Ng6 {[%clk 0:04:16.6]} 16. Nd6 {[%clk 0:04:04.9]} 16... Bxa4 {[%clk
0:04:08.8]} 17. Qxa4 {[%clk 0:03:53]} 17... Qxd6 {[%clk 0:04:07.6]} 18. Rb7
{[%clk 0:03:45.6]} 18... e5 {[%clk 0:04:05.8]} 19. Rd7 {[%clk 0:03:37.4]} 19...
Qe6 {[%clk 0:04:00.2]} 20. Rb1 {[%clk 0:03:18.6]} 20... Qg4 {[%clk 0:03:47.2]}
21. Rbb7 {[%clk 0:03:09.6]} 21... Rf8 {[%clk 0:03:43]} 22. h3 {[%clk 0:02:44.8]}
22... Qe4 {[%clk 0:03:27.7]} 23. Qd1 {[%clk 0:02:36.1]} 23... exd4 {[%clk
0:03:14.9]} 24. exd4 {[%clk 0:02:26.4]} 24... a5 {[%clk 0:02:41.2]} 25. Rb5
{[%clk 0:02:09]} 25... Nf4 {[%clk 0:02:33.3]} 26. Rdb7 {[%clk 0:01:46.5]} 26...
a4 {[%clk 0:02:18.4]} 27. a3 {[%clk 0:01:43.3]} 27... Rfe8 {[%clk 0:01:56.5]}
28. Kh1 {[%clk 0:01:16.6]} 28... Nd3 {[%clk 0:01:49.9]} 29. Qf1 {[%clk
0:01:03.9]} 29... Be7 {[%clk 0:01:41.1]} 30. Nd2 {[%clk 0:00:53.6]} 30... Qe1
{[%clk 0:01:20.8]} 31. Qxe1 {[%clk 0:00:47.5]} 31... Nxe1 {[%clk 0:01:20]} 32.
Rxd5 {[%clk 0:00:40.3]} 32... Bxa3 {[%clk 0:01:18.6]} 33. Re5 {[%clk 0:00:30.3]}
33... Rxe5 {[%clk 0:01:13.6]} 34. dxe5 {[%clk 0:00:27.6]} 34... Nd3 {[%clk
0:00:58.6]} 35. Nxc4 {[%clk 0:00:24.7]} 35... Nxf2+ {[%clk 0:00:57.9]} 36. Kh2
{[%clk 0:00:22.2]} 36... Bf8 {[%clk 0:00:51]} 37. Nd6 {[%clk 0:00:14.3]} 37...
a3 {[%clk 0:00:45.9]} 38. Nxf7 {[%clk 0:00:07.9]} 38... a2 {[%clk 0:00:44.8]}
0-1

[Event "Live Chess"]
[Site "Chess.com"]
[Date "2023.05.21"]
[Round "-"]
[White "Mikhail_Golubev"]
[Black "hturner40"]
[Result "1-0"]
[WhiteElo "2421"]
[BlackElo "1786"]
[TimeControl "300"]
[EndTime "8:55:59 PDT"]
[Termination "Mikhail_Golubev won on time"]

1. e4 {[%clk 0:04:56.1]} 1... Nc6 {[%clk 0:04:59.1]} 2. Nf3 {[%clk 0:04:54.9]}
2... e5 {[%clk 0:04:58.2]} 3. Nc3 {[%clk 0:04:50.6]} 3... Nf6 {[%clk 0:04:56.3]}
4. a3 {[%clk 0:04:50.1]} 4... Bd6 {[%clk 0:04:50.1]} 5. g3 {[%clk 0:04:47]} 5...
O-O {[%clk 0:04:46]} 6. Bg2 {[%clk 0:04:46.2]} 6... Nd4 {[%clk 0:04:45]} 7. Nxd4
{[%clk 0:04:41]} 7... exd4 {[%clk 0:04:43.6]} 8. Ne2 {[%clk 0:04:39.9]} 8... Bc5
{[%clk 0:04:40.4]} 9. d3 {[%clk 0:04:38.6]} 9... d5 {[%clk 0:04:37.7]} 10. e5
{[%clk 0:04:35.5]} 10... Ng4 {[%clk 0:04:35.4]} 11. O-O {[%clk 0:04:14]} 11...
Nxe5 {[%clk 0:04:32.5]} 12. Nf4 {[%clk 0:04:06.7]} 12... Bg4 {[%clk 0:04:25.9]}
13. f3 {[%clk 0:04:02.9]} 13... Be6 {[%clk 0:04:22.5]} 14. Nxe6 {[%clk
0:03:59.6]} 14... fxe6 {[%clk 0:04:20.7]} 15. f4 {[%clk 0:03:59.3]} 15... Nc6
{[%clk 0:04:10.4]} 16. Qg4 {[%clk 0:03:51.4]} 16... Rf6 {[%clk 0:03:49.8]} 17.
Bd2 {[%clk 0:03:50.4]} 17... Rg6 {[%clk 0:03:17.1]} 18. Qh5 {[%clk 0:03:45.9]}
18... Ne7 {[%clk 0:03:05.6]} 19. Rae1 {[%clk 0:03:43.6]} 19... Nf5 {[%clk
0:03:02.1]} 20. Rxe6 {[%clk 0:03:31.1]} 20... Rxe6 {[%clk 0:02:54.5]} 21. Qxf5
{[%clk 0:03:29.8]} 21... Rd6 {[%clk 0:02:53.1]} 22. Qg4 {[%clk 0:03:23.3]} 22...
Qd7 {[%clk 0:02:41.7]} 23. f5 {[%clk 0:03:02.6]} 23... c6 {[%clk 0:02:38.8]} 24.
Bf4 {[%clk 0:02:57.9]} 24... Rf6 {[%clk 0:02:36.1]} 25. Be5 {[%clk 0:02:54.7]}
25... Rf7 {[%clk 0:02:22.3]} 26. Bh3 {[%clk 0:02:48.7]} 26... Re8 {[%clk
0:02:15.8]} 27. Qf4 {[%clk 0:01:57.3]} 27... Rxe5 {[%clk 0:00:33.4]} 28. Qxe5
{[%clk 0:01:55.4]} 28... Qe7 {[%clk 0:00:31.6]} 29. Qe6 {[%clk 0:01:42.3]} 29...
Qxe6 {[%clk 0:00:24.4]} 30. fxe6 {[%clk 0:01:41.4]} 30... Rxf1+ {[%clk
0:00:22.7]} 31. Kxf1 {[%clk 0:01:39.3]} 31... Kf8 {[%clk 0:00:21.6]} 32. Ke2
{[%clk 0:01:36.1]} 32... Ke7 {[%clk 0:00:20.2]} 33. Kf3 {[%clk 0:01:31.4]} 33...
h5 {[%clk 0:00:17.7]} 34. Kf4 {[%clk 0:01:26.3]} 34... Kf6 {[%clk 0:00:07]} 35.
Kf3 {[%clk 0:01:22.7]} 35... g5 {[%clk 0:00:04]} 36. e7 {[%clk 0:01:15]} 36...
Bxe7 {[%clk 0:00:01.4]} 37. Bc8 {[%clk 0:01:12.3]} 1-0

[Event "Live Chess"]
[Site "Chess.com"]
[Date "2023.05.21"]
[Round "-"]
[White "davigator"]
[Black "Misha145Chess"]
[Result "1-0"]
[WhiteElo "2306"]
[BlackElo "620"]
[TimeControl "300"]
[EndTime "8:56:02 PDT"]
[Termination "davigator won by resignation"]

1. d4 {[%clk 0:04:56.8]} 1... e5 {[%clk 0:04:55.2]} 2. dxe5 {[%clk 0:04:55]}
2... Bc5 {[%clk 0:04:53.5]} 3. Nf3 {[%clk 0:04:54]} 3... d6 {[%clk 0:04:52.9]}
4. e6 {[%clk 0:04:52.5]} 4... Bxe6 {[%clk 0:04:50.4]} 5. Nc3 {[%clk 0:04:48]}
5... d5 {[%clk 0:04:48.9]} 6. e3 {[%clk 0:04:46.7]} 6... Nf6 {[%clk 0:04:44.3]}
7. Bd3 {[%clk 0:04:43.8]} 7... Nc6 {[%clk 0:04:43.1]} 8. h3 {[%clk 0:04:42.8]}
8... d4 {[%clk 0:04:42.4]} 9. exd4 {[%clk 0:04:41.1]} 9... Bxd4 {[%clk
0:04:42.3]} 10. Nxd4 {[%clk 0:04:38.1]} 10... Nxd4 {[%clk 0:04:42.2]} 11. O-O
{[%clk 0:04:37.2]} 11... O-O {[%clk 0:04:40.7]} 12. Bf4 {[%clk 0:04:35.1]} 12...
h6 {[%clk 0:04:32.4]} 13. Be5 {[%clk 0:04:29.4]} 13... Nh7 {[%clk 0:04:10.2]}
14. Bxd4 {[%clk 0:04:27.3]} 14... Qxd4 {[%clk 0:04:07.1]} 15. Bxh7+ {[%clk
0:04:26]} 1-0

[Event "Live Chess"]
[Site "Chess.com"]
[Date "2023.05.21"]
[Round "-"]
[White "KeithArkell"]
[Black "LanceMaster23"]
[Result "1-0"]
[WhiteElo "2461"]
[BlackElo "1958"]
[TimeControl "300"]
[EndTime "8:56:08 PDT"]
[Termination "KeithArkell won on time"]

1. d4 {[%clk 0:04:58]} 1... Nf6 {[%clk 0:04:57.8]} 2. Nf3 {[%clk 0:04:57]} 2...
d5 {[%clk 0:04:57.2]} 3. c4 {[%clk 0:04:56]} 3... c6 {[%clk 0:04:46.5]} 4. Nc3
{[%clk 0:04:54.1]} 4... dxc4 {[%clk 0:04:41.1]} 5. a4 {[%clk 0:04:53]} 5... Bf5
{[%clk 0:04:38]} 6. e3 {[%clk 0:04:50.1]} 6... Bg6 {[%clk 0:03:42.1]} 7. Bxc4
{[%clk 0:04:45.5]} 7... e6 {[%clk 0:03:39.7]} 8. O-O {[%clk 0:04:35.4]} 8... Be7
{[%clk 0:03:38.4]} 9. a5 {[%clk 0:04:32.5]} 9... O-O {[%clk 0:03:33.9]} 10. Qb3
{[%clk 0:04:22]} 10... Qc7 {[%clk 0:03:23.4]} 11. Ne5 {[%clk 0:04:19.7]} 11...
Nd5 {[%clk 0:03:03.4]} 12. Nxg6 {[%clk 0:04:14.7]} 12... hxg6 {[%clk 0:03:00.9]}
13. Bd2 {[%clk 0:04:13.9]} 13... Nd7 {[%clk 0:02:43.8]} 14. g3 {[%clk
0:04:10.5]} 14... N7f6 {[%clk 0:02:31.1]} 15. Rfc1 {[%clk 0:04:08.6]} 15... Nxc3
{[%clk 0:02:29.1]} 16. bxc3 {[%clk 0:04:06.2]} 16... b5 {[%clk 0:02:13.5]} 17.
axb6 {[%clk 0:04:04.3]} 17... axb6 {[%clk 0:02:12.6]} 18. Be2 {[%clk 0:03:56.1]}
18... Nd7 {[%clk 0:01:57.9]} 19. Bf3 {[%clk 0:03:52.5]} 19... Rab8 {[%clk
0:01:57.3]} 20. c4 {[%clk 0:03:51]} 20... c5 {[%clk 0:01:52.4]} 21. Bc3 {[%clk
0:03:41.7]} 21... Bf6 {[%clk 0:01:50.9]} 22. Ra4 {[%clk 0:03:36]} 22... Rfd8
{[%clk 0:01:46.2]} 23. Rca1 {[%clk 0:03:33.3]} 23... cxd4 {[%clk 0:01:39.7]} 24.
exd4 {[%clk 0:03:29.6]} 24... Qd6 {[%clk 0:01:28]} 25. Qa3 {[%clk 0:03:21.8]}
25... Qc7 {[%clk 0:01:18.4]} 26. Bb4 {[%clk 0:02:48.4]} 26... Rbc8 {[%clk
0:00:49.7]} 27. Bd6 {[%clk 0:02:44.8]} 27... Qxc4 {[%clk 0:00:42.6]} 28. Rxc4
{[%clk 0:02:43.1]} 28... Rxc4 {[%clk 0:00:42.5]} 29. Rd1 {[%clk 0:02:34.4]}
29... Rxd4 {[%clk 0:00:31.5]} 30. Rxd4 {[%clk 0:02:30.9]} 30... Bxd4 {[%clk
0:00:31.4]} 31. Qa7 {[%clk 0:02:26]} 31... Nf6 {[%clk 0:00:21.8]} 32. Qc7 {[%clk
0:02:18.1]} 32... Rd7 {[%clk 0:00:19.6]} 33. Qb8+ {[%clk 0:02:16.8]} 33... Kh7
{[%clk 0:00:19.1]} 34. Kg2 {[%clk 0:02:10.4]} 34... Nd5 {[%clk 0:00:14.1]} 35.
Bxd5 {[%clk 0:02:05.4]} 35... exd5 {[%clk 0:00:14]} 36. Bf4 {[%clk 0:01:59.2]}
36... Bc5 {[%clk 0:00:12.5]} 37. Qc8 {[%clk 0:01:58]} 37... Re7 {[%clk
0:00:10.7]} 38. Qc6 {[%clk 0:01:49.7]} 38... Re2 {[%clk 0:00:09.8]} 39. Qxd5
{[%clk 0:01:43.4]} 39... Rxf2+ {[%clk 0:00:09.2]} 40. Kh3 {[%clk 0:01:42.7]}
40... f6 {[%clk 0:00:08.3]} 41. Qe4 {[%clk 0:01:16.9]} 41... Rb2 {[%clk
0:00:04.1]} 42. Bc1 {[%clk 0:01:02]} 42... Rb4 {[%clk 0:00:03.4]} 43. Qd3 {[%clk
0:00:57.3]} 43... Rd4 {[%clk 0:00:03.3]} 44. Qe2 {[%clk 0:00:56.3]} 44... Rd5
{[%clk 0:00:02.7]} 45. Kg2 {[%clk 0:00:52.7]} 45... Rh5 {[%clk 0:00:02.1]} 46.
h4 {[%clk 0:00:49.5]} 46... Rd5 {[%clk 0:00:01.8]} 47. Qf3 {[%clk 0:00:44.4]}
47... Re5 {[%clk 0:00:01.4]} 48. Bf4 {[%clk 0:00:42.6]} 48... Rf5 {[%clk
0:00:00.8]} 49. Qe4 {[%clk 0:00:41.2]} 1-0

[Event "Live Chess"]
[Site "Chess.com"]
[Date "2023.05.21"]
[Round "-"]
[White "friarnator"]
[Black "zdanevych"]
[Result "1-0"]
[WhiteElo "2035"]
[BlackElo "1469"]
[TimeControl "300"]
[EndTime "8:56:08 PDT"]
[Termination "friarnator won by resignation"]

1. e4 {[%clk 0:04:58.8]} 1... c5 {[%clk 0:04:58.9]} 2. d4 {[%clk 0:04:56.6]}
2... cxd4 {[%clk 0:04:57]} 3. c3 {[%clk 0:04:56.3]} 3... dxc3 {[%clk 0:04:55.8]}
4. Nxc3 {[%clk 0:04:56.2]} 4... Nc6 {[%clk 0:04:55]} 5. Nf3 {[%clk 0:04:55.8]}
5... a6 {[%clk 0:04:54.2]} 6. Bc4 {[%clk 0:04:55.5]} 6... e5 {[%clk 0:04:50.7]}
7. O-O {[%clk 0:04:53.3]} 7... Nf6 {[%clk 0:04:49.5]} 8. Ng5 {[%clk 0:04:48.4]}
8... d5 {[%clk 0:04:44.6]} 9. exd5 {[%clk 0:04:46.3]} 9... Nd4 {[%clk
0:04:37.4]} 10. d6 {[%clk 0:04:41.6]} 10... Be6 {[%clk 0:04:34.9]} 11. Nxe6
{[%clk 0:04:38.5]} 11... Nxe6 {[%clk 0:04:34.8]} 12. Bxe6 {[%clk 0:04:37.6]}
12... fxe6 {[%clk 0:04:34.7]} 13. Bg5 {[%clk 0:04:30.6]} 13... Qxd6 {[%clk
0:04:28.5]} 14. Qb3 {[%clk 0:04:15.5]} 14... b5 {[%clk 0:04:20.3]} 15. Rad1
{[%clk 0:04:13.9]} 15... Qc6 {[%clk 0:04:00.1]} 16. Rfe1 {[%clk 0:04:05.5]}
16... Be7 {[%clk 0:03:55]} 17. Rxe5 {[%clk 0:04:02.6]} 17... O-O {[%clk
0:03:49.5]} 18. Rxe6 {[%clk 0:04:01.3]} 18... Qb7 {[%clk 0:03:32.3]} 19. Rxe7+
{[%clk 0:03:58.7]} 1-0

[Event "Live Chess"]
[Site "Chess.com"]
[Date "2023.05.21"]
[Round "-"]
[White "Dhaydon19"]
[Black "PiotrD11"]
[Result "1-0"]
[WhiteElo "2692"]
[BlackElo "1374"]
[TimeControl "300"]
[EndTime "8:56:08 PDT"]
[Termination "Dhaydon19 won by checkmate"]

1. d4 {[%clk 0:04:56.9]} 1... d5 {[%clk 0:04:58.8]} 2. Nf3 {[%clk 0:04:56.6]}
2... Nc6 {[%clk 0:04:57.9]} 3. g3 {[%clk 0:04:56.1]} 3... Bg4 {[%clk 0:04:56.6]}
4. Bg2 {[%clk 0:04:55.3]} 4... g6 {[%clk 0:04:51.9]} 5. c3 {[%clk 0:04:54.3]}
5... Bg7 {[%clk 0:04:51.2]} 6. Nbd2 {[%clk 0:04:53.4]} 6... e5 {[%clk
0:04:49.8]} 7. dxe5 {[%clk 0:04:51.7]} 7... Nxe5 {[%clk 0:04:48.1]} 8. Nxe5
{[%clk 0:04:51.4]} 8... Bxe5 {[%clk 0:04:47]} 9. Qa4+ {[%clk 0:04:51]} 9... c6
{[%clk 0:04:45.3]} 10. Qxg4 {[%clk 0:04:49.1]} 10... Nf6 {[%clk 0:04:44.9]} 11.
Qg5 {[%clk 0:04:45.3]} 11... O-O {[%clk 0:04:43.7]} 12. Qxe5 {[%clk 0:04:44.1]}
12... Re8 {[%clk 0:04:41.7]} 13. Qd4 {[%clk 0:04:43.2]} 13... Qe7 {[%clk
0:04:40.6]} 14. O-O {[%clk 0:04:42.5]} 14... Qxe2 {[%clk 0:04:37.4]} 15. Qxf6
{[%clk 0:04:41.3]} 15... Re6 {[%clk 0:04:35.1]} 16. Qf4 {[%clk 0:04:39.3]} 16...
Rae8 {[%clk 0:04:33.1]} 17. Nf3 {[%clk 0:04:38.5]} 17... Re4 {[%clk 0:04:25.9]}
18. Nd4 {[%clk 0:04:37.3]} 18... Qh5 {[%clk 0:04:24.2]} 19. Bxe4 {[%clk
0:04:35.1]} 19... Rxe4 {[%clk 0:04:21.1]} 20. Qf3 {[%clk 0:04:34.3]} 20... Qe5
{[%clk 0:04:13.6]} 21. Bf4 {[%clk 0:04:33.1]} 21... Qe8 {[%clk 0:04:12.3]} 22.
Bh6 {[%clk 0:04:30.6]} 22... c5 {[%clk 0:04:10.1]} 23. Qf6 {[%clk 0:04:29.3]}
23... Qe5 {[%clk 0:04:04.9]} 24. Qxe5 {[%clk 0:04:27.9]} 24... Rxe5 {[%clk
0:04:04.2]} 25. Rfe1 {[%clk 0:04:27.5]} 25... Rxe1+ {[%clk 0:04:01.9]} 26. Rxe1
{[%clk 0:04:27]} 26... cxd4 {[%clk 0:04:01.5]} 27. Re8# {[%clk 0:04:25.5]} 1-0

[Event "Live Chess"]
[Site "Chess.com"]
[Date "2023.05.21"]
[Round "-"]
[White "JohanKjeldahl"]
[Black "Ferrarifan27"]
[Result "0-1"]
[WhiteElo "1886"]
[BlackElo "2051"]
[TimeControl "300"]
[EndTime "8:56:24 PDT"]
[Termination "Ferrarifan27 won by resignation"]

1. c4 {[%clk 0:04:58.2]} 1... Nf6 {[%clk 0:04:58.4]} 2. Nc3 {[%clk 0:04:56.3]}
2... e5 {[%clk 0:04:57.2]} 3. Nf3 {[%clk 0:04:53.9]} 3... Nc6 {[%clk 0:04:48.4]}
4. e3 {[%clk 0:04:52.7]} 4... Bb4 {[%clk 0:04:45.1]} 5. Qc2 {[%clk 0:04:51.5]}
5... Bxc3 {[%clk 0:04:43.3]} 6. bxc3 {[%clk 0:04:50]} 6... O-O {[%clk 0:04:42]}
7. d4 {[%clk 0:04:49]} 7... Re8 {[%clk 0:04:39.8]} 8. d5 {[%clk 0:04:47.1]} 8...
Na5 {[%clk 0:04:35.7]} 9. e4 {[%clk 0:04:45.7]} 9... b6 {[%clk 0:04:34.2]} 10.
Be2 {[%clk 0:04:42.9]} 10... d6 {[%clk 0:04:33.3]} 11. O-O {[%clk 0:04:42.2]}
11... Ba6 {[%clk 0:04:31.6]} 12. Qa4 {[%clk 0:04:34.9]} 12... Nxe4 {[%clk
0:04:29]} 13. Bb2 {[%clk 0:04:32]} 13... Nc5 {[%clk 0:04:19.5]} 14. Qb4 {[%clk
0:04:24.4]} 14... Qd7 {[%clk 0:04:05.9]} 15. Rfe1 {[%clk 0:04:16]} 15... Qa4
{[%clk 0:03:56.5]} 16. a3 {[%clk 0:04:12.5]} 16... Bxc4 {[%clk 0:03:44.6]} 17.
Bxc4 {[%clk 0:04:07.8]} 17... Nxc4 {[%clk 0:03:43]} 0-1

[Event "Live Chess"]
[Site "Chess.com"]
[Date "2023.05.21"]
[Round "-"]
[White "yarek"]
[Black "LordBenin"]
[Result "1-0"]
[WhiteElo "1856"]
[BlackElo "1387"]
[TimeControl "300"]
[EndTime "8:56:25 PDT"]
[Termination "yarek won by resignation"]

1. e4 {[%clk 0:04:56.8]} 1... c6 {[%clk 0:04:58.5]} 2. d4 {[%clk 0:04:54.7]}
2... d5 {[%clk 0:04:56.9]} 3. exd5 {[%clk 0:04:53.9]} 3... cxd5 {[%clk
0:04:55.7]} 4. Bd3 {[%clk 0:04:53.4]} 4... Nf6 {[%clk 0:04:54.3]} 5. c3 {[%clk
0:04:52.9]} 5... Bg4 {[%clk 0:04:49.8]} 6. Nf3 {[%clk 0:04:48.4]} 6... h6 {[%clk
0:04:47.2]} 7. h3 {[%clk 0:04:46.2]} 7... Bxf3 {[%clk 0:04:44.4]} 8. Qxf3 {[%clk
0:04:44.2]} 8... e6 {[%clk 0:04:43.1]} 9. Bf4 {[%clk 0:04:33.9]} 9... Bd6 {[%clk
0:04:38.5]} 10. Bb5+ {[%clk 0:04:28.4]} 10... Nc6 {[%clk 0:04:35.6]} 11. O-O
{[%clk 0:04:14.7]} 11... Bxf4 {[%clk 0:04:30.8]} 12. Qxf4 {[%clk 0:04:14.6]}
12... O-O {[%clk 0:04:28.4]} 13. Nd2 {[%clk 0:04:09.9]} 13... a6 {[%clk
0:04:25.1]} 14. Bd3 {[%clk 0:04:07.8]} 14... Rc8 {[%clk 0:04:20.7]} 15. Nf3
{[%clk 0:04:05.6]} 15... b6 {[%clk 0:03:14.2]} 16. Bxa6 {[%clk 0:04:00]} 16...
Rb8 {[%clk 0:03:09.8]} 17. Bd3 {[%clk 0:03:50.4]} 17... b5 {[%clk 0:03:05.5]}
18. a3 {[%clk 0:03:46.1]} 18... Na5 {[%clk 0:03:01.8]} 19. Ne5 {[%clk
0:03:42.4]} 19... Nc4 {[%clk 0:02:58]} 20. Rab1 {[%clk 0:03:18.7]} 20... Nd7
{[%clk 0:02:52.2]} 21. Rfe1 {[%clk 0:03:06.2]} 21... Ndxe5 {[%clk 0:02:47.2]}
22. dxe5 {[%clk 0:03:01.7]} 22... Qc7 {[%clk 0:02:40.5]} 23. Re2 {[%clk
0:02:46.9]} 23... Rbc8 {[%clk 0:02:27.5]} 24. Rbe1 {[%clk 0:02:28]} 24... Qc6
{[%clk 0:02:16.4]} 25. Qd4 {[%clk 0:02:20.3]} 25... Rb8 {[%clk 0:02:02.8]} 26.
f4 {[%clk 0:02:17.2]} 26... g6 {[%clk 0:01:58.5]} 27. g4 {[%clk 0:02:12.7]}
27... Kg7 {[%clk 0:01:56.9]} 28. f5 {[%clk 0:02:10.7]} 28... exf5 {[%clk
0:01:44.1]} 29. gxf5 {[%clk 0:02:04.6]} 29... Qd7 {[%clk 0:01:36.6]} 30. e6+
{[%clk 0:01:59.4]} 1-0